fUSD/lending_fUSD_20250807
["ID","MTS","AMOUNT","RATE_DAILY","PERIOD"]
[377883147,1754596240259,-523.6106576,0.00018999,2]
[377883148,1754596240268,-994.7381,0.00018999,2]
[377883149,1754596240278,-150.0,0.00018999,2]
[377883150,1754596240287,-150.0,0.00018999,2]
[377883151,1754596240297,-200.0,0.00018999,2]
[377883152,1754596240306,-67.09683371,0.00018999,2]
[377883153,1754596240343,-82.90316629,0.00018999,2]
[377883154,1754596240353,-150.0,0.00018999,2]
[377883155,1754596240363,-500.0,0.00018999,2]
[377883156,1754596240372,-66.52015371,0.00018999,2]
[377883203,1754596242702,-1826.66756755,0.00018768,2]
[377883211,1754596242807,-1402.35007957,0.00018768,2]
[377883212,1754596242818,-307.04820952,0.00018768,2]
[377883213,1754596242827,-10.93179048,0.000188,2]
[377883214,1754596242839,-279.66992043,0.000188,2]
[377883234,1754596245540,-758.48733533,0.000188,2]
[377883235,1754596245551,-2578.72061342,0.000188,2]
[377883236,1754596245574,-1735.66863145,0.000188,2]
[377883237,1754596245606,-5315.88268061,0.000188,2]
[377883238,1754596245729,-18658.28362828,0.000188,2]
[377883239,1754596245738,-766.61104042,0.000189,2]
[377883240,1754596245747,-151.0,0.00018984,2]
[377883241,1754596245757,-621.84,0.0001899,2]
[377883242,1754596245767,-621.84,0.0001899,2]
[377883243,1754596245776,-181.44506713,0.00018999,2]
[377883244,1754596245787,-1214.0,0.00018999,2]
[377883245,1754596245800,-1212.0,0.00018999,2]
[377883246,1754596245810,-1214.0,0.00018999,2]
[377883247,1754596245821,-1212.0,0.00018999,2]
[377883248,1754596245831,-134880.58151168,0.00019,2]
[377883249,1754596245843,-7706.2417,0.00019,2]
[377883250,1754596246116,-0.12967988,0.00019,2]
[377883251,1754596247129,509.0,0.00017182,2]
[377883252,1754596247215,-424.59660563,0.00019,2]
[377883253,1754596247228,-1512.23124437,0.00019,2]
[377883254,1754596247238,-770.00000452,0.00019,2]
[377883255,1754596247250,-692.09118732,0.00019,2]
[377883256,1754596275796,518.0,0.00017182,2]
[377883258,1754596294020,500.0,0.00016986,2]
[377883259,1754596298455,500.0,0.00016986,2]
[377883260,1754596305821,9071.08,0.00030137,120]
[377883261,1754596307153,500.0,0.00016986,2]
[377883262,1754596393067,621.16981362,0.00017724,2]
[377883263,1754596395771,150.0,0.00017644,2]
[377883264,1754596396137,728.53249746,0.00017804,2]
[377883265,1754596396665,835.8951813,0.00017885,2]
[377883266,1754596397023,943.25786513,0.00017965,2]
[377883268,1754596517683,151.0,0.00017958,2]
[377883269,1754596533873,151.0,0.00017952,2]
[377883270,1754596551362,151.0,0.0001795,2]
[377883271,1754596569123,151.0,0.00017949,2]
[377883274,1754596583897,8440.3,0.00017792,2]
[377883280,1754596709558,2775.42,0.0001781,2]
[377883281,1754596715725,1000.0,0.00017804,2]
[377883282,1754596745177,6392.82,0.00017958,2]
[377883283,1754596761571,165.79,0.00017815,2]
[377883286,1754596768843,371.32,0.00013699,2]
[377883287,1754596815885,307.39,0.0001782,2]
[377883290,1754596854832,175.0,0.00017809,7]
[377883291,1754596865581,-832.13827,0.00018006,2]
[377883292,1754596865602,-832.13827,0.00018006,2]
[377883293,1754596865623,-832.13827,0.00018006,2]
[377883294,1754596865644,-832.13827,0.00018006,2]
[377883295,1754596865664,-832.1383,0.00018006,2]
[377883296,1754596877344,186.5,0.00017821,2]
[377883297,1754596878053,186.5,0.00026732,120]
[377883301,1754596967261,509.0,0.000177,2]
[377883302,1754597008517,509.04,0.00015068,2]
[377883303,1754597008756,509.04,0.00016653,2]
[377883304,1754597043625,4070.22,0.00017777,2]
[377883306,1754597088730,55.50862,0.00017784,2]
[377883307,1754597088753,144.13138,0.00017784,2]
[377883308,1754597122058,200.0,0.00017827,2]
[377883309,1754597135110,1003.0,0.00030137,120]
[377883310,1754597155100,189.57,0.00017847,2]
[377883312,1754597253779,9466.29862,0.00017783,2]
[377883313,1754597253801,10000.0,0.00017783,2]
[377883314,1754597253820,2585.83138,0.00017783,2]
[377883316,1754597331183,521.1,0.00017767,2]
[377883317,1754597353408,666.0,0.00017771,3]
[377883359,1754597432432,-1000.0,0.00018133,4]
[377883360,1754597432443,-250.0,0.00018146,2]
[377883361,1754597432454,-216.66,0.00018174,2]
[377883362,1754597432463,-509.04,0.00018237,2]
[377883363,1754597432473,-168.79,0.00018362,2]
[377883364,1754597432482,-329.15,0.000184,2]
[377883365,1754597432491,-172.93,0.000184,2]
[377883366,1754597432500,-300.0,0.000185,6]
[377883367,1754597432510,-1200.0,0.00018513,2]
[377883368,1754597432520,-300.0,0.00018514,2]
[377883369,1754597432529,-300.0,0.00018514,2]
[377883370,1754597432539,-500.0,0.00018515,2]
[377883371,1754597432548,-1019.25735079,0.00018515,2]
[377883372,1754597432560,-3476.8977234,0.00018515,2]
[377883373,1754597432569,-267.46074303,0.00018515,2]
[377883374,1754597432578,-2382.48902657,0.0001857,2]
[377883375,1754597432589,-866.07894629,0.0001857,2]
[377883376,1754597432605,-921.51901856,0.0001857,2]
[377883377,1754597432627,-492.42582052,0.0001857,2]
[377883378,1754597432636,-850.0,0.00018585,2]
[377883379,1754597432647,-500.0,0.00018586,2]
[377883380,1754597432656,-600.0,0.00018586,2]
[377883381,1754597432665,-500.0,0.00018586,2]
[377883382,1754597432674,-500.0,0.00018586,2]
[377883383,1754597432685,-401.19111454,0.00018586,2]
[377883384,1754597432697,-500.0,0.00018586,2]
[377883385,1754597432706,-500.0,0.00018586,2]
[377883386,1754597432715,-90.34455938,0.00018586,2]
[377883387,1754597432750,-285.38069282,0.00018586,2]
[377883388,1754597432759,-304.54914718,0.00018586,2]
[377883389,1754597432770,-195.45085282,0.00018586,2]
[377883390,1754597432779,-76.02978112,0.00018586,2]
[377883391,1754597432791,-423.97021888,0.00018586,2]
[377883392,1754597432800,-500.0,0.00018586,2]
[377883393,1754597432810,-495.74624703,0.00018586,2]
[377883394,1754597432821,-4.25375297,0.00018586,2]
[377883395,1754597432831,-500.0,0.00018586,2]
[377883396,1754597432839,-160.0,0.00018586,2]
[377883397,1754597432848,-500.0,0.00018586,2]
[377883398,1754597432858,-151.0,0.00018586,2]
[377883399,1754597432867,-500.0,0.00018586,2]
[377883400,1754597432876,-151.0,0.00018586,2]
[377883401,1754597432886,-500.0,0.00018586,2]
[377883402,1754597432895,-151.0,0.00018586,2]
[377883403,1754597432905,-500.0,0.00018586,2]
[377883404,1754597432914,-151.0,0.00018586,2]
[377883405,1754597432924,-500.0,0.00018586,2]
[377883406,1754597432933,-500.0,0.00018586,2]
[377883407,1754597432946,-151.0,0.00018586,2]
[377883408,1754597432955,-500.0,0.00018586,2]
[377883409,1754597432965,-500.0,0.00018586,2]
[377883410,1754597432974,-500.0,0.00018586,2]
[377883411,1754597432984,-500.0,0.00018586,2]
[377883412,1754597432994,-500.0,0.00018586,2]
[377883413,1754597433003,-500.0,0.00018586,2]
[377883414,1754597433012,-500.0,0.00018586,2]
[377883415,1754597433022,-500.0,0.00018586,2]
[377883416,1754597433032,-500.0,0.00018586,2]
[377883417,1754597433042,-500.0,0.00018586,2]
[377883418,1754597433053,-500.0,0.00018586,2]
[377883419,1754597433065,-500.0,0.00018586,2]
[377883420,1754597433075,-500.0,0.00018586,2]
[377883421,1754597433085,-500.0,0.00018586,2]
[377883422,1754597433095,-500.0,0.00018586,2]
[377883423,1754597433105,-500.0,0.00018586,2]
[377883424,1754597433115,-500.0,0.00018586,2]
[377883425,1754597433126,-500.0,0.00018586,2]
[377883426,1754597433136,-151.0,0.00018586,2]
[377883427,1754597433146,-151.0,0.00018586,2]
[377883428,1754597433157,-151.0,0.00018586,2]
[377883429,1754597433167,-151.0,0.00018586,2]
[377883430,1754597433177,-151.0,0.00018586,2]
[377883431,1754597433187,-151.0,0.00018586,2]
[377883432,1754597433199,-300.0,0.00018586,2]
[377883433,1754597433209,-300.0,0.00018586,2]
[377883434,1754597433219,-300.0,0.00018586,2]
[377883435,1754597433229,-300.0,0.00018586,2]
[377883436,1754597433393,-300.0,0.00018586,2]
[377883437,1754597433420,-344.55063413,0.00018586,2]
[377883438,1754597433429,-14118.8369527,0.00018597,2]
[377883439,1754597433441,-700.0,0.000186,6]
[377883440,1754597433451,-4835.02578598,0.00018625,2]
[377883441,1754597433460,-985.0,0.0001863,2]
[377883442,1754597433470,-199.64,0.00018673,2]
[377883443,1754597433480,-5013.92174006,0.0001868,2]
[377883444,1754597433489,-600.0,0.00018696,2]
[377883445,1754597433499,-263.67,0.00018696,2]
[377883446,1754597433509,-1100.0,0.000187,6]
[377883447,1754597433519,-162.68,0.00018701,2]
[377883448,1754597433529,-5199.43684444,0.00018735,2]
[377883449,1754597433538,-3629.44832398,0.0001879,2]
[377883450,1754597433559,-711.67370319,0.0001879,2]
[377883451,1754597433570,-1050.69398052,0.0001879,2]
[377883452,1754597433580,-1500.0,0.000188,6]
[377883453,1754597433590,-538.63959,0.0001881,2]
[377883454,1754597433600,-5591.31319997,0.00018845,2]
[377883455,1754597433610,-2915.11314908,0.00018855,2]
[377883456,1754597433624,-4574.6493,0.00018867,2]
[377883457,1754597433633,-3360.0,0.00018883,2]
[377883458,1754597433643,-1252.0,0.00018883,2]
[377883459,1754597433653,-956.0,0.00018883,2]
[377883460,1754597433663,-5798.19178837,0.000189,2]
[377883461,1754597433672,-863.51151954,0.000189,2]
[377883462,1754597433681,-6595.6445,0.000189,2]
[377883463,1754597433693,-582.5042,0.000189,2]
[377883464,1754597433702,-1000.0,0.000189,2]
[377883465,1754597433711,-1000.0,0.000189,2]
[377883466,1754597433721,-1000.0,0.000189,2]
[377883467,1754597433730,-54.30056742,0.000189,2]
[377883470,1754597437622,-1672.52998082,0.000189,2]
[377883471,1754597437634,-4731.18546936,0.000189,2]
[377883472,1754597437644,-1900.0,0.000189,6]
[377883473,1754597437653,-506.12984932,0.000189,2]
[377883474,1754597437663,-935.73682785,0.000189,5]
[377883475,1754597437720,-345.71356772,0.000189,5]
[377883476,1754597437730,-155.6262414,0.000189,2]
[377883477,1754597437740,-2784.94328069,0.000189,2]
[377883478,1754597437752,-1552.0,0.000189,2]
[377883479,1754597437764,-663.05671931,0.000189,2]
[377883480,1754597437774,-597.0,0.00018901,2]
[377883481,1754597437783,-959.0,0.00018901,2]
[377883482,1754597437793,-2088.574,0.00018901,2]
[377883483,1754597437802,-1652.0,0.00018901,2]
[377883484,1754597437812,-467.48217247,0.00018901,2]
[377883485,1754597437878,-20970.51782753,0.00018901,2]
[377883486,1754597437887,-718.193,0.00018901,2]
[377883487,1754597437897,-538.63959,0.0001892,2]
[377883488,1754597437906,-559.376,0.00018925,2]
[377883489,1754597437916,-341.243,0.0001893,2]
[377883490,1754597437928,-32401.39,0.0001894,2]
[377883491,1754597437937,-2915.11314906,0.00018941,2]
[377883493,1754597437947,-6012.72488454,0.00018955,2]
[377883495,1754597437957,-500.0,0.00018973,2]
[377883497,1754597437966,-500.0,0.00018973,2]
[377883499,1754597437976,-500.0,0.00018973,2]
[377883501,1754597437985,-500.0,0.00018973,2]
[377883503,1754597437995,-269.61735279,0.00018973,2]
[377883505,1754597438004,-501.37732755,0.00018973,2]
[377883507,1754597438013,-500.0,0.00018973,2]
[377883509,1754597438022,-503.03485559,0.00018973,2]
[377883511,1754597438032,-6458.01601753,0.00018981,2]
[377883513,1754597438042,-151.0,0.00018984,2]
[377883515,1754597438051,-151.0,0.00018984,2]
[377883517,1754597438062,-151.0,0.00018984,2]
[377883519,1754597438072,-150.0,0.00018991,2]
[377883521,1754597438081,-154.0,0.00018991,2]
[377883523,1754597438091,-150.0,0.00018999,2]
[377883525,1754597438100,-226.0,0.00018999,2]
[377883529,1754597438109,-150.0,0.00018999,2]
[377883532,1754597438119,-500.0,0.00018999,2]
[377883535,1754597438127,-368.0222901,0.00018999,2]
[377883537,1754597438137,-211.57844474,0.00018999,2]
[377883539,1754597438146,-1214.0,0.00018999,2]
[377883541,1754597438156,-1214.0,0.00018999,2]
[377883543,1754597438166,-1214.0,0.00018999,2]
[377883545,1754597438175,-1214.0,0.00018999,2]
[377883547,1754597438184,-760.01214769,0.00018999,2]
[377883549,1754597438194,-153.0,0.00018999,2]
[377883551,1754597438204,-153.0,0.00018999,2]
[377883552,1754597438213,-209.88065986,0.00018999,2]
[377883553,1754597438223,-1180.13199139,0.00019,2]
[377883554,1754597438232,-65805.51518263,0.00019,2]
[377883555,1754597438242,-1000.0,0.00019,2]
[377883556,1754597438252,-1000.0,0.00019,2]
[377883557,1754597438261,-1000.0,0.00019,2]
[377883561,1754597438679,-1000.0,0.00019,2]
[377883562,1754597438706,-1000.0,0.00019,2]
[377883563,1754597438716,-1000.0,0.00019,2]
[377883564,1754597438727,-1000.0,0.00019,2]
[377883565,1754597438737,-1019562.773668,0.00019,2]
[377883566,1754597438780,-7751.55926118,0.00019,2]
[377883567,1754597438800,-6854.760008,0.00019,2]
[377883568,1754597438812,-5372.54566772,0.00019,2]
[377883569,1754597438823,-6974.41293048,0.00019,2]
[377883570,1754597438834,-3015.54065554,0.00019,2]
[377883573,1754597439777,-1962.98488885,0.00018901,2]
[377883574,1754597439883,-753.90874139,0.00018901,2]
[377883575,1754597440130,-793.30337225,0.00018901,2]
[377883576,1754597440250,-630.80299751,0.00018901,2]
[377883577,1754597440260,-1072.22782484,0.00019,2]
[377883578,1754597440272,-728.4488013,0.00019,2]
[377883767,1754597443449,-37440.36,0.0001894,2]
[377883768,1754597443459,-217919.86567817,0.00019,2]
[377883769,1754597443468,-38498.53432182,0.00019,2]
[377883770,1754597443479,-27024.89999993,0.00019,2]
[377883771,1754597443525,-866.19799885,0.00019,2]
[377883772,1754597443728,-6087.344625,0.00019,2]
[377883773,1754597443739,-17952.19312731,0.00019,2]
[377883774,1754597443749,-1000.0,0.00019,2]
[377883775,1754597443759,-1000.0,0.00019,2]
[377883776,1754597443768,-627.02202119,0.00019,2]
[377883777,1754597443778,-1674.04944531,0.00019,2]
[377883778,1754597443788,-95113.21318866,0.00019,2]
[377883779,1754597443798,-413.55815304,0.00019,2]
[377883780,1754597443807,-282.955078,0.00019,2]
[377883781,1754597443816,-151.0,0.00019,2]
[377883782,1754597443829,-151.0,0.00019,2]
[377883783,1754597443842,-151.0,0.00019,2]
[377883784,1754597443851,-151.0,0.00019,2]
[377883785,1754597443861,-212.481356,0.00019,2]
[377883786,1754597443870,-151.0,0.00019,2]
[377883787,1754597443880,-151.0,0.00019,2]
[377883788,1754597443889,-151.0,0.00019,2]
[377883789,1754597443898,-151.0,0.00019,2]
[377883790,1754597443907,-151.0,0.00019,2]
[377883791,1754597443917,-151.0,0.00019,2]
[377883792,1754597443926,-151.0,0.00019,2]
[377883793,1754597443935,-252.216008,0.00019,2]
[377883794,1754597443944,-203.863616,0.00019,2]
[377883795,1754597443955,-151.0,0.00019,2]
[377883796,1754597443964,-151.858231,0.00019,2]
[377883797,1754597443973,-151.0,0.00019,2]
[377883798,1754597443982,-254.880703,0.00019,2]
[377883799,1754597443991,-151.0,0.00019,2]
[377883800,1754597444000,-151.0,0.00019,2]
[377883801,1754597444010,-151.0,0.00019,2]
[377883802,1754597444018,-151.0,0.00019,2]
[377883803,1754597444027,-151.0,0.00019,2]
[377883804,1754597444037,-151.0,0.00019,2]
[377883805,1754597444046,-151.0,0.00019,2]
[377883806,1754597444055,-151.0,0.00019,2]
[377883807,1754597444066,-151.0,0.00019,2]
[377883808,1754597444076,-151.0,0.00019,2]
[377883809,1754597444085,-151.0,0.00019,2]
[377883810,1754597444095,-151.0,0.00019,2]
[377883811,1754597444104,-151.0,0.00019,2]
[377883812,1754597444114,-151.0,0.00019,2]
[377883813,1754597444123,-151.0,0.00019,2]
[377883814,1754597444132,-152.4965,0.00019,2]
[377883815,1754597444142,-151.0,0.00019,2]
[377883816,1754597444151,-151.0,0.00019,2]
[377883817,1754597444160,-151.0,0.00019,2]
[377883818,1754597444169,-151.0,0.00019,2]
[377883819,1754597444178,-151.0,0.00019,2]
[377883820,1754597444188,-151.0,0.00019,2]
[377883821,1754597444197,-151.0,0.00019,2]
[377883822,1754597444207,-151.0,0.00019,2]
[377883823,1754597444217,-152.665008,0.00019,2]
[377883824,1754597444226,-34468.62240314,0.00019,2]
[377883825,1754597444235,-151.0,0.00019,2]
[377883826,1754597444245,-154.170189,0.00019,2]
[377883827,1754597444254,-151.0,0.00019,2]
[377883828,1754597444263,-154.016332,0.00019,2]
[377883829,1754597444272,-151.0,0.00019,2]
[377883830,1754597444282,-292.771243,0.00019,2]
[377883831,1754597444291,-154.029013,0.00019,2]
[377883832,1754597444301,-151.0,0.00019,2]
[377883833,1754597444310,-151.0,0.00019,2]
[377883834,1754597444320,-249.227757,0.00019,2]
[377883835,1754597444329,-151.0,0.00019,2]
[377883836,1754597444338,-151.0,0.00019,2]
[377883837,1754597444347,-151.0,0.00019,2]
[377883838,1754597444357,-151.0,0.00019,2]
[377883839,1754597444366,-151.0,0.00019,2]
[377883840,1754597444375,-151.0,0.00019,2]
[377883841,1754597444385,-151.0,0.00019,2]
[377883842,1754597444394,-152.093471,0.00019,2]
[377883843,1754597444404,-160.059017,0.00019,2]
[377883844,1754597444413,-151.0,0.00019,2]
[377883845,1754597444422,-151.0,0.00019,2]
[377883846,1754597444432,-172.948643,0.00019,2]
[377883847,1754597444441,-187.04792,0.00019,2]
[377883848,1754597444452,-151.0,0.00019,2]
[377883849,1754597444462,-151.0,0.00019,2]
[377883850,1754597444471,-151.0,0.00019,2]
[377883851,1754597444481,-151.0,0.00019,2]
[377883852,1754597444490,-151.0,0.00019,2]
[377883853,1754597444499,-151.0,0.00019,2]
[377883854,1754597444508,-151.0,0.00019,2]
[377883855,1754597444519,-151.0,0.00019,2]
[377883856,1754597444528,-151.0,0.00019,2]
[377883857,1754597444537,-151.0,0.00019,2]
[377883858,1754597444546,-156.462131,0.00019,2]
[377883859,1754597444555,-151.0,0.00019,2]
[377883860,1754597444565,-151.0,0.00019,2]
[377883861,1754597444574,-151.0,0.00019,2]
[377883862,1754597444583,-151.0,0.00019,2]
[377883863,1754597444592,-151.0,0.00019,2]
[377883864,1754597444602,-204.065423,0.00019,2]
[377883865,1754597444612,-151.0,0.00019,2]
[377883866,1754597444624,-151.0,0.00019,2]
[377883867,1754597444633,-151.0,0.00019,2]
[377883868,1754597444642,-151.0,0.00019,2]
[377883869,1754597444652,-151.0,0.00019,2]
[377883870,1754597444662,-151.0,0.00019,2]
[377883871,1754597444671,-301.999999,0.00019,2]
[377883872,1754597444681,-240.32887,0.00019,2]
[377883873,1754597444692,-151.0,0.00019,2]
[377883874,1754597444703,-151.0,0.00019,2]
[377883875,1754597444711,-151.0,0.00019,2]
[377883876,1754597444721,-151.0,0.00019,2]
[377883877,1754597444730,-151.0,0.00019,2]
[377883878,1754597444739,-151.0,0.00019,2]
[377883879,1754597444749,-151.0,0.00019,2]
[377883880,1754597444759,-151.0,0.00019,2]
[377883881,1754597444768,-151.0,0.00019,2]
[377883882,1754597444777,-776.0,0.00019,2]
[377883883,1754597444786,-151.0,0.00019,2]
[377883884,1754597444795,-151.0,0.00019,2]
[377883885,1754597444804,-151.0,0.00019,2]
[377883886,1754597444813,-151.0,0.00019,2]
[377883887,1754597444822,-151.0,0.00019,2]
[377883888,1754597444831,-151.0,0.00019,2]
[377883889,1754597444840,-151.0,0.00019,2]
[377883890,1754597444852,-186.200472,0.00019,2]
[377883891,1754597444863,-151.0,0.00019,2]
[377883892,1754597444872,-523.765369,0.00019,2]
[377883893,1754597444880,-523.765369,0.00019,2]
[377883894,1754597444890,-523.765369,0.00019,2]
[377883895,1754597444899,-523.765369,0.00019,2]
[377883896,1754597444908,-523.765369,0.00019,2]
[377883897,1754597444917,-523.765369,0.00019,2]
[377883898,1754597444926,-523.765369,0.00019,2]
[377883899,1754597444935,-523.765369,0.00019,2]
[377883900,1754597444944,-342.35782,0.00019,2]
[377883901,1754597444954,-342.35782,0.00019,2]
[377883902,1754597444964,-342.35782,0.00019,2]
[377883903,1754597444973,-342.35782,0.00019,2]
[377883904,1754597444982,-342.35782,0.00019,2]
[377883905,1754597444991,-342.35782,0.00019,2]
[377883906,1754597444999,-342.35782,0.00019,2]
[377883907,1754597445008,-151.0,0.00019,2]
[377883908,1754597445018,-151.0,0.00019,2]
[377883909,1754597445026,-156.405791,0.00019,2]
[377883910,1754597445035,-719.0,0.00019,2]
[377883911,1754597445044,-503.0,0.00019,2]
[377883912,1754597445054,-151.0,0.00019,2]
[377883913,1754597445064,-151.0,0.00019,2]
[377883914,1754597445073,-151.0,0.00019,2]
[377883915,1754597445083,-151.0,0.00019,2]
[377883916,1754597445092,-151.0,0.00019,2]
[377883917,1754597445101,-151.0,0.00019,2]
[377883918,1754597445111,-759.0,0.00019,2]
[377883919,1754597445121,-9960.76975913,0.00019,30]
[377883920,1754597445130,-151.0,0.00019,2]
[377883921,1754597445139,-151.0,0.00019,2]
[377883922,1754597445148,-151.0,0.00019,2]
[377883923,1754597445157,-151.0,0.00019,2]
[377883924,1754597445166,-151.0,0.00019,2]
[377883925,1754597445176,-151.0,0.00019,2]
[377883926,1754597445185,-151.0,0.00019,2]
[377883927,1754597445196,-151.0,0.00019,2]
[377883928,1754597445206,-151.0,0.00019,2]
[377883929,1754597445216,-151.0,0.00019,2]
[377883930,1754597445225,-151.0,0.00019,2]
[377883931,1754597445235,-151.0,0.00019,2]
[377883932,1754597445244,-151.0,0.00019,2]
[377883933,1754597445254,-151.0,0.00019,2]
[377883934,1754597445264,-151.0,0.00019,2]
[377883935,1754597445274,-230.039661,0.00019,2]
[377883936,1754597445284,-156.44262,0.00019,2]
[377883937,1754597445293,-162.298649,0.00019,2]
[377883938,1754597445302,-151.0,0.00019,2]
[377883939,1754597445312,-151.0,0.00019,2]
[377883940,1754597445321,-234.302356,0.00019,2]
[377883941,1754597445330,-151.0,0.00019,2]
[377883942,1754597445339,-153.957675,0.00019,2]
[377883943,1754597445348,-151.0,0.00019,2]
[377883944,1754597445358,-151.0,0.00019,2]
[377883945,1754597445367,-151.0,0.00019,2]
[377883946,1754597445376,-175.790721,0.00019,2]
[377883947,1754597445385,-151.0,0.00019,2]
[377883948,1754597445394,-151.0,0.00019,2]
[377883949,1754597445403,-151.0,0.00019,2]
[377883950,1754597445412,-151.0,0.00019,2]
[377883951,1754597445422,-151.0,0.00019,2]
[377883952,1754597445431,-151.0,0.00019,2]
[377883953,1754597445440,-151.0,0.00019,2]
[377883954,1754597445450,-151.0,0.00019,2]
[377883955,1754597445459,-6235.19570527,0.0001901,2]
[377883956,1754597445469,-2915.11314906,0.00019026,2]
[377883957,1754597445479,-202.0,0.0001906,2]
[377883958,1754597445488,-6458.01601753,0.00019061,2]
[377883959,1754597445497,-6465.89794637,0.00019065,2]
[377883960,1754597445506,-151.0,0.0001911,2]
[377883961,1754597445515,-237.644789,0.0001911,2]
[377883962,1754597445525,-11740.55788018,0.0001911,2]
[377883963,1754597445534,-2915.11314906,0.00019112,2]
[377883964,1754597445544,-6705.13617038,0.0001912,2]
[377883965,1754597445553,-151.0,0.00019142,2]
[377883966,1754597445562,-151.0,0.00019142,2]
[377883967,1754597445571,-151.0,0.00019142,2]
[377883968,1754597445581,-151.0,0.00019142,2]
[377883969,1754597445590,-151.0,0.00019142,2]
[377883970,1754597445600,-151.0,0.00019142,2]
[377883972,1754597445611,-6458.01601753,0.00019142,2]
[377883974,1754597445623,-151.0,0.00019142,2]
[377883975,1754597445632,-523.765369,0.00019142,2]
[377883976,1754597445641,-523.765369,0.00019142,2]
[377883977,1754597445651,-342.35782,0.00019142,2]
[377883978,1754597445660,-342.35782,0.00019142,2]
[377883979,1754597445672,-151.0,0.00019142,2]
[377883980,1754597445681,-4242.0,0.00019151,2]
[377883981,1754597445690,-538.6396,0.0001916,2]
[377883982,1754597445700,-506.12984926,0.0001916,2]
[377883983,1754597445710,-500.0,0.00019173,2]
[377883984,1754597445720,-500.0,0.00019173,2]
[377883985,1754597445729,-500.0,0.00019173,2]
[377883986,1754597445738,-500.0,0.00019173,2]
[377883987,1754597445748,-170.74890238,0.00019173,2]
[377883988,1754597445757,-500.0,0.00019173,2]
[377883989,1754597445767,-250.04396644,0.00019173,2]
[377883990,1754597445777,-500.0,0.00019173,2]
[377883991,1754597445787,-502.98121397,0.00019173,2]
[377883992,1754597445797,-505.57386471,0.00019173,2]
[377883993,1754597445806,-500.0,0.00019173,2]
[377883994,1754597445815,-500.0,0.00019173,2]
[377883995,1754597445824,-500.0,0.00019173,2]
[377883996,1754597445833,-186.12261483,0.00019173,2]
[377883997,1754597445842,-499.57978236,0.00019173,2]
[377883998,1754597445852,-500.0,0.00019173,2]
[377883999,1754597445861,-182.35243364,0.00019173,2]
[377884000,1754597445870,-500.0,0.00019173,2]
[377884001,1754597445879,-500.0,0.00019173,2]
[377884002,1754597445889,-500.0,0.00019173,2]
[377884003,1754597445898,-500.0,0.00019173,2]
[377884004,1754597445907,-500.0,0.00019173,2]
[377884005,1754597445916,-500.0,0.00019173,2]
[377884006,1754597445926,-500.0,0.00019173,2]
[377884007,1754597445937,-500.0,0.00019173,2]